fUSD/lending_fUSD_20251023
["ID","MTS","AMOUNT","RATE_DAILY","PERIOD"]
[392168047,1761227450157,-500.0,0.00044958,120]
[392168048,1761227450167,-500.0,0.00044958,120]
[392168049,1761227450176,-500.0,0.00044958,120]
[392168050,1761227450186,-500.0,0.00044958,120]
[392168051,1761227450195,-750.71,0.00044958,120]
[392168052,1761227450204,-500.0,0.00044958,120]
[392168053,1761227450214,-500.0,0.00044958,120]
[392168054,1761227450223,-500.0,0.00044958,120]
[392168055,1761227450232,-500.0,0.00044958,120]
[392168056,1761227450242,-500.0,0.00044958,120]
[392168057,1761227450252,-528.41,0.00044958,120]
[392168058,1761227450262,-500.0,0.00044958,120]
[392168059,1761227450271,-430.62616495,0.00044958,30]
[392168060,1761227450280,-500.0,0.00044958,120]
[392168061,1761227450290,-500.0,0.00044958,120]
[392168062,1761227450299,-500.0,0.00044958,120]
[392168063,1761227450309,-590.64789357,0.00044958,120]
[392168064,1761227450320,-500.0,0.00044958,120]
[392168065,1761227450330,-500.0,0.00044958,120]
[392168066,1761227450339,-500.0,0.00044958,120]
[392168067,1761227450349,-500.0,0.00044958,120]
[392168068,1761227450359,-500.0,0.00044958,120]
[392168069,1761227450368,-500.0,0.00044958,120]
[392168070,1761227450378,-538.68,0.00044958,120]
[392168071,1761227450387,-512.42,0.00044958,120]
[392168072,1761227450398,-500.0,0.00044958,120]
[392168073,1761227450409,-500.0,0.00044958,2]
[392168074,1761227450419,-500.0,0.00044958,120]
[392168075,1761227450430,-500.0,0.00044958,120]
[392168076,1761227450440,-500.0,0.00044958,120]
[392168077,1761227450451,-530.11,0.00044958,120]
[392168078,1761227450462,-521.11322736,0.00044958,120]
[392168079,1761227450472,-553.14,0.00044958,120]
[392168080,1761227450483,-500.0,0.00044958,120]
[392168081,1761227450493,-500.0,0.00044958,120]
[392168082,1761227450503,-500.0,0.00044958,120]
[392168083,1761227450514,-500.0,0.00044958,120]
[392168084,1761227450524,-500.0,0.00044958,120]
[392168085,1761227450533,-500.0,0.00044958,120]
[392168086,1761227450542,-500.0,0.00044958,120]
[392168087,1761227450553,-500.0,0.00044958,120]
[392168088,1761227450563,-500.0,0.00044958,120]
[392168089,1761227450573,-700.74,0.00044958,120]
[392168090,1761227450583,-500.0,0.00044958,120]
[392168091,1761227450592,-500.0,0.00044958,120]
[392168092,1761227450602,-2225.80230699,0.00044958,120]
[392168093,1761227450612,-14576.88501372,0.00044958,120]
[392168094,1761227450623,-966.3812174,0.00044959,120]
[392168095,1761227450632,-1226.0,0.00044959,120]
[392168096,1761227450642,-30986.0,0.00044959,120]
[392168097,1761227450651,-4647.0,0.00044959,120]
[392168098,1761227450663,-1112.90115348,0.0004496,120]
[392168099,1761227450674,-411.59744897,0.0004496,120]
[392168100,1761227450682,-492.7116344,0.0004496,2]
[392168101,1761227450691,-43730.65504117,0.0004496,120]
[392168102,1761227450699,-5980.7111174,0.0004496,120]
[392168103,1761227450708,-1234.79234688,0.00044961,120]
[392168104,1761227450717,-14576.88501372,0.00044961,120]
[392168105,1761227450725,-1112.90115348,0.00044962,120]
[392168106,1761227450735,-29153.77002744,0.00044962,120]
[392168107,1761227450744,-1013.93522714,0.00044965,120]
[392168108,1761227450755,-2225.80230699,0.00044966,120]
[392168109,1761227450765,-1112.90115348,0.00044966,120]
[392168110,1761227450774,-2225.80230699,0.00044967,120]
[392168111,1761227450784,-5980.7111174,0.00044968,120]
[392168112,1761227450802,-1234.79234688,0.00044968,120]
[392168113,1761227450812,-1112.90115348,0.00044969,120]
[392168114,1761227450821,-336.52547942,0.0004497,120]
[392168115,1761227450831,-400.0,0.0004497,3]
[392168116,1761227450840,-742.45984123,0.0004497,3]
[392168117,1761227450850,-423.18672404,0.0004497,7]
[392168118,1761227450859,-1926.39222285,0.0004497,2]
[392168119,1761227450868,-9967.85186247,0.00044972,120]
[392168120,1761227450879,-29153.77002744,0.00044972,120]
[392168121,1761227450890,-160.177328,0.00044973,10]
[392168122,1761227450902,-160.177328,0.00044973,10]
[392168123,1761227450912,-160.177328,0.00044973,10]
[392168124,1761227450922,-500.0,0.00044973,10]
[392168125,1761227450933,-160.177328,0.00044973,10]
[392168126,1761227450943,-160.17732799,0.00044973,5]
[392168127,1761227450953,-160.17732799,0.00044973,10]
[392168128,1761227450963,-160.17732397,0.00044973,5]
[392168129,1761227450974,-160.46141013,0.00044973,10]
[392168130,1761227450984,-160.177328,0.00044973,7]
[392168131,1761227450994,-160.17732397,0.00044973,10]
[392168132,1761227451004,-463.47527647,0.00044973,5]
[392168133,1761227451014,-150.0,0.00044973,14]
[392168134,1761227451024,-43730.65504117,0.00044973,120]
[392168135,1761227451034,-966.3812174,0.00044974,120]
[392168136,1761227451044,-1234.79234688,0.00044974,120]
[392168137,1761227451054,-411.59744897,0.00044974,120]
[392168138,1761227451065,-411.59744897,0.00044974,120]
[392168139,1761227451075,-1013.93522714,0.00044975,120]
[392168140,1761227451085,-43730.65504117,0.00044975,120]
[392168141,1761227451095,-5980.7111174,0.00044976,120]
[392168142,1761227451105,-9967.85186247,0.00044977,120]
[392168143,1761227451116,-9967.85186247,0.00044977,120]
[392168144,1761227451127,-869.08733755,0.00044977,120]
[392168145,1761227451138,-500.0,0.00044977,120]
[392168146,1761227451148,-500.0,0.00044977,120]
[392168147,1761227451159,-2151.23,0.00044977,120]
[392168148,1761227451168,-500.0,0.00044977,120]
[392168149,1761227451179,-202.38031132,0.00044977,120]
[392168150,1761227451189,-1319.05,0.00044977,120]
[392168151,1761227451199,-500.0,0.00044977,120]
[392168152,1761227451209,-500.0,0.00044977,120]
[392168153,1761227451219,-1469.62,0.00044977,30]
[392168154,1761227451228,-500.0,0.00044977,120]
[392168155,1761227451238,-965.62,0.00044977,120]
[392168156,1761227451247,-500.0,0.00044977,120]
[392168157,1761227451258,-500.0,0.00044977,120]
[392168158,1761227451267,-500.0,0.00044977,120]
[392168159,1761227451277,-1349.88,0.00044977,120]
[392168160,1761227451288,-500.0,0.00044977,120]
[392168161,1761227451297,-500.0,0.00044977,60]
[392168162,1761227451307,-456.79884033,0.00044977,120]
[392168163,1761227451317,-2217.27,0.00044977,120]
[392168164,1761227451327,-500.0,0.00044978,120]
[392168165,1761227451336,-500.0,0.00044978,120]
[392168166,1761227451346,-500.0,0.00044978,120]
[392168167,1761227451355,-500.0,0.00044978,120]
[392168168,1761227451364,-644.85,0.00044978,120]
[392168169,1761227451373,-500.0,0.00044978,120]
[392168170,1761227451383,-500.0,0.00044978,12]
[392168171,1761227451393,-500.0,0.00044978,120]
[392168172,1761227451402,-500.0,0.00044978,120]
[392168173,1761227451412,-500.0,0.00044978,120]
[392168174,1761227451422,-470.27396598,0.00044978,120]
[392168175,1761227451431,-500.0,0.00044978,120]
[392168176,1761227451440,-500.0,0.00044978,120]
[392168177,1761227451450,-500.0,0.00044978,120]
[392168178,1761227451461,-500.0,0.00044978,120]
[392168179,1761227451471,-500.0,0.00044978,120]
[392168180,1761227451480,-320.0,0.00044979,120]
[392168181,1761227451489,-500.0,0.00044979,120]
[392168182,1761227451499,-39695.35860035,0.0004498,18]
[392168183,1761227451510,-54700.47719462,0.0004498,120]
[392168184,1761227451520,-9967.85186247,0.00044981,120]
[392168185,1761227451530,-751.6298358,0.00044982,120]
[392168186,1761227451539,-751.6298358,0.00044983,120]
[392168187,1761227451549,-5980.7111174,0.00044984,120]
[392168188,1761227451558,-29153.77002744,0.00044984,120]
[392168189,1761227451567,-1112.90115348,0.00044984,120]
[392168190,1761227451576,-869.08733755,0.00044985,120]
[392168191,1761227451585,-1013.93522714,0.00044986,120]
[392168192,1761227451594,-2202.83381149,0.00044986,120]
[392168193,1761227451603,-14576.88501372,0.00044987,120]
[392168194,1761227451613,-1112.90115348,0.00044987,120]
[392168195,1761227451622,-15419.83668044,0.00044987,120]
[392168196,1761227451632,-966.3812174,0.00044987,120]
[392168197,1761227451641,-2202.83381149,0.00044988,120]
[392168198,1761227451650,-1234.79234688,0.00044988,120]
[392168199,1761227451664,-966.3812174,0.00044988,120]
[392168200,1761227451673,-751.6298358,0.00044989,120]
[392168201,1761227451683,-15419.83668044,0.00044989,120]
[392168202,1761227451692,-423.18672404,0.0004499,7]
[392168203,1761227451702,-2202.83381149,0.0004499,120]
[392168204,1761227451711,-751.6298358,0.00044991,120]
[392168205,1761227451816,-2225.80230699,0.00044994,120]
[392168206,1761227451827,-43730.65504117,0.00044995,120]
[392168207,1761227451837,-15419.83668044,0.00044996,120]
[392168208,1761227451847,-1112.90115348,0.00044997,120]
[392168209,1761227451857,-1013.93522714,0.00044997,120]
[392168210,1761227451867,-411.59744897,0.00044997,120]
[392168211,1761227451876,-14576.88501372,0.00044997,120]
[392168212,1761227451886,-15419.83668044,0.00044997,120]
[392168213,1761227451896,-500.0,0.00044998,120]
[392168214,1761227451905,-218.2157082,0.00044998,120]
[392168215,1761227451914,-500.0,0.00044998,120]
[392168216,1761227451924,-500.0,0.00044998,120]
[392168217,1761227451933,-500.0,0.00044998,120]
[392168218,1761227451943,-500.0,0.00044998,120]
[392168219,1761227451953,-500.0,0.00044998,120]
[392168220,1761227451963,-500.0,0.00044998,120]
[392168221,1761227451973,-500.0,0.00044998,120]
[392168222,1761227451983,-500.0,0.00044998,120]
[392168223,1761227451993,-276.08796535,0.00044998,120]
[392168224,1761227452003,-500.0,0.00044998,120]
[392168225,1761227452012,-500.0,0.00044998,120]
[392168226,1761227452022,-356.31,0.00044998,120]
[392168227,1761227452031,-644.85,0.00044998,120]
[392168228,1761227452040,-644.85,0.00044998,120]
[392168229,1761227452050,-366.49,0.00044998,120]
[392168230,1761227452059,-500.0,0.00044998,12]
[392168231,1761227452069,-500.0,0.00044998,120]
[392168232,1761227452079,-500.0,0.00044998,120]
[392168233,1761227452089,-500.0,0.00044998,120]
[392168234,1761227452099,-500.0,0.00044998,120]
[392168235,1761227452109,-500.0,0.00044998,120]
[392168236,1761227452118,-500.0,0.00044998,120]
[392168237,1761227452128,-500.0,0.00044998,120]
[392168238,1761227452138,-500.0,0.00044998,120]
[392168239,1761227452147,-500.0,0.00044998,120]
[392168240,1761227452157,-500.0,0.00044998,120]
[392168241,1761227452167,-500.0,0.00044998,120]
[392168242,1761227452176,-500.0,0.00044998,120]
[392168243,1761227452186,-750.71,0.00044998,120]
[392168245,1761227452196,-750.71,0.00044998,120]
[392168246,1761227452206,-500.0,0.00044998,120]
[392168247,1761227452216,-500.0,0.00044998,120]
[392168248,1761227452226,-500.0,0.00044998,120]
[392168249,1761227452236,-500.0,0.00044998,120]
[392168250,1761227452246,-500.0,0.00044998,120]
[392168251,1761227452258,-500.0,0.00044998,120]
[392168252,1761227452267,-500.0,0.00044998,120]
[392168253,1761227452277,-500.0,0.00044998,120]
[392168254,1761227452287,-500.0,0.00044998,120]
[392168255,1761227452296,-500.0,0.00044998,120]
[392168256,1761227452307,-500.0,0.00044998,120]
[392168257,1761227452316,-500.0,0.00044998,120]
[392168258,1761227452326,-500.0,0.00044998,120]
[392168259,1761227452336,-500.0,0.00044998,120]
[392168260,1761227452345,-528.41,0.00044998,120]
[392168261,1761227452355,-528.41,0.00044998,120]
[392168262,1761227452365,-500.0,0.00044998,120]
[392168263,1761227452375,-437.37048385,0.00044998,120]
[392168264,1761227452384,-500.0,0.00044998,120]
[392168265,1761227452393,-500.0,0.00044998,120]
[392168266,1761227452403,-500.0,0.00044998,120]
[392168267,1761227452413,-396.45874701,0.00044998,120]
[392168268,1761227452423,-500.0,0.00044998,120]
[392168269,1761227452432,-546.10668654,0.00044998,120]
[392168270,1761227452442,-500.0,0.00044998,120]
[392168271,1761227452452,-500.0,0.00044998,120]
[392168272,1761227452461,-500.0,0.00044998,120]
[392168273,1761227452472,-500.0,0.00044998,120]
[392168274,1761227452482,-500.0,0.00044998,120]
[392168275,1761227452492,-174.11250358,0.00044998,120]
[392168276,1761227452502,-500.0,0.00044998,120]
[392168277,1761227452516,-500.0,0.00044998,120]
[392168278,1761227452527,-500.0,0.00044998,120]
[392168279,1761227452538,-500.0,0.00044998,120]
[392168280,1761227452548,-500.0,0.00044998,120]
[392168281,1761227452558,-500.0,0.00044998,120]
[392168282,1761227452568,-500.0,0.00044998,120]
[392168283,1761227452578,-500.0,0.00044998,120]
[392168284,1761227452588,-500.0,0.00044998,120]
[392168285,1761227452597,-500.0,0.00044998,120]
[392168286,1761227452607,-500.0,0.00044998,120]
[392168287,1761227452616,-500.0,0.00044998,120]
[392168288,1761227452626,-500.0,0.00044998,120]
[392168289,1761227452636,-500.0,0.00044998,120]
[392168290,1761227452646,-538.68,0.00044998,120]
[392168291,1761227452656,-538.68,0.00044998,120]
[392168292,1761227452671,-512.42,0.00044998,120]
[392168293,1761227452681,-512.42,0.00044998,120]
[392168294,1761227452690,-500.0,0.00044998,120]
[392168295,1761227452699,-500.0,0.00044998,120]
[392168296,1761227452709,-500.0,0.00044998,2]
[392168297,1761227452719,-500.0,0.00044998,2]
[392168298,1761227452729,-500.0,0.00044998,120]
[392168299,1761227452739,-500.0,0.00044998,120]
[392168300,1761227452749,-500.0,0.00044998,120]
[392168301,1761227452762,-500.0,0.00044998,120]
[392168302,1761227452771,-530.11,0.00044998,120]
[392168303,1761227452781,-530.11,0.00044998,120]
[392168304,1761227452791,-423.24515231,0.00044998,120]
[392168305,1761227452801,-500.0,0.00044998,120]
[392168306,1761227452811,-500.0,0.00044998,120]
[392168307,1761227452823,-553.14,0.00044998,120]
[392168308,1761227452838,-553.14,0.00044998,120]
[392168309,1761227452848,-2151.23,0.00044998,120]
[392168310,1761227452857,-2151.23,0.00044998,120]
[392168311,1761227452867,-500.0,0.00044998,120]
[392168312,1761227452877,-500.0,0.00044998,120]
[392168313,1761227452887,-223.48314988,0.00044998,120]
[392168314,1761227452896,-500.0,0.00044998,120]
[392168315,1761227452906,-500.0,0.00044998,120]
[392168316,1761227452915,-1319.05,0.00044998,120]
[392168317,1761227452925,-1319.05,0.00044998,120]
[392168318,1761227452934,-500.0,0.00044998,120]
[392168319,1761227452944,-500.0,0.00044998,120]
[392168320,1761227452953,-500.0,0.00044998,120]
[392168321,1761227452963,-624.6392011,0.00044998,120]
[392168322,1761227452972,-197.72693913,0.00044998,120]
[392168323,1761227452982,-500.0,0.00044998,120]
[392168324,1761227452991,-500.0,0.00044998,120]
[392168325,1761227453001,-1469.62,0.00044998,30]
[392168326,1761227453013,-1469.62,0.00044998,30]
[392168327,1761227453023,-500.0,0.00044998,120]
[392168328,1761227453034,-500.0,0.00044998,120]
[392168329,1761227453043,-500.0,0.00044998,120]
[392168330,1761227453053,-500.0,0.00044998,120]
[392168331,1761227453063,-500.0,0.00044998,120]
[392168332,1761227453073,-965.62,0.00044998,120]
[392168333,1761227453083,-965.62,0.00044998,120]
[392168334,1761227453093,-500.0,0.00044998,120]
[392168335,1761227453103,-609.91794343,0.00044998,120]
[392168336,1761227453112,-500.0,0.00044998,120]
[392168337,1761227453122,-500.0,0.00044998,120]
[392168338,1761227453132,-570.17815905,0.00044998,120]
[392168339,1761227453142,-542.74072181,0.00044998,120]
[392168340,1761227453152,-500.0,0.00044998,120]
[392168341,1761227453162,-224.60116884,0.00044998,120]
[392168342,1761227453172,-500.0,0.00044998,120]
[392168343,1761227453183,-500.0,0.00044998,120]
[392168344,1761227453193,-1349.88,0.00044998,120]
[392168345,1761227453203,-1349.88,0.00044998,120]
[392168346,1761227453213,-500.0,0.00044998,120]
[392168347,1761227453223,-500.0,0.00044998,120]
[392168348,1761227453243,-500.0,0.00044998,120]
[392168349,1761227453258,-500.0,0.00044998,120]
[392168350,1761227453268,-500.0,0.00044998,60]
[392168351,1761227453279,-500.0,0.00044998,60]
[392168352,1761227453290,-2217.27,0.00044998,120]
[392168353,1761227453301,-2217.27,0.00044998,120]
[392168354,1761227453311,-700.74,0.00044998,120]
[392168355,1761227453321,-700.74,0.00044998,120]
[392168356,1761227453331,-500.0,0.00044998,120]
[392168357,1761227453340,-500.0,0.00044998,120]
[392168358,1761227453350,-500.0,0.00044998,120]
[392168359,1761227453359,-500.0,0.00044998,120]
[392168360,1761227453369,-1112.90115348,0.00044998,120]
[392168361,1761227453379,-2202.83381149,0.00044998,120]
[392168362,1761227453389,-1177.65810365,0.00044999,60]
[392168363,1761227453399,-5800.0,0.00044999,14]
[392168364,1761227453409,-500.0,0.00044999,120]
[392168365,1761227453418,-500.0,0.00044999,120]
[392168366,1761227453428,-500.0,0.00044999,120]
[392168367,1761227453438,-500.0,0.00044999,120]
[392168368,1761227453448,-500.0,0.00044999,120]
[392168369,1761227453457,-500.0,0.00044999,120]
[392168370,1761227453467,-500.0,0.00044999,120]
[392168371,1761227453477,-263.38687609,0.00044999,120]
[392168372,1761227453487,-500.0,0.00044999,120]
[392168373,1761227453496,-500.0,0.00044999,120]
[392168374,1761227453505,-500.0,0.00044999,120]
[392168375,1761227453515,-500.0,0.00044999,120]
[392168376,1761227453525,-500.0,0.00044999,120]
[392168377,1761227453535,-500.0,0.00044999,120]
[392168378,1761227453545,-500.0,0.00044999,120]
[392168379,1761227453555,-500.0,0.00044999,120]
[392168380,1761227453564,-230.52215308,0.00044999,120]
[392168381,1761227453574,-429.75956721,0.00044999,120]
[392168382,1761227453583,-500.0,0.00044999,120]
[392168383,1761227453594,-500.0,0.00044999,120]
[392168384,1761227453603,-500.0,0.00044999,120]
[392168385,1761227453613,-500.0,0.00044999,120]
[392168386,1761227453622,-500.0,0.00044999,120]
[392168387,1761227453631,-563.8456862,0.00044999,120]
[392168388,1761227453641,-369.19980881,0.00044999,120]
[392168389,1761227453651,-644.85,0.00044999,120]
[392168390,1761227453662,-644.85,0.00044999,120]
[392168391,1761227453674,-644.85,0.00044999,120]
[392168392,1761227453683,-644.85,0.00044999,120]
[392168393,1761227453693,-644.85,0.00044999,120]
[392168394,1761227453703,-644.85,0.00044999,120]
[392168395,1761227453713,-644.85,0.00044999,120]
[392168396,1761227453723,-644.85,0.00044999,120]
[392168397,1761227453733,-644.85,0.00044999,120]
[392168398,1761227453745,-644.85,0.00044999,120]
[392168399,1761227453755,-644.85,0.00044999,120]
[392168400,1761227453767,-79.97734476,0.00044999,120]
[392168401,1761227453863,-564.87265524,0.00044999,120]
[392168402,1761227453873,-644.85,0.00044999,120]
[392168403,1761227453883,-644.9,0.00044999,120]
[392168404,1761227453893,-500.0,0.00044999,120]
[392168405,1761227453903,-500.0,0.00044999,120]
[392168406,1761227453912,-500.0,0.00044999,120]
[392168407,1761227453922,-500.0,0.00044999,120]
[392168408,1761227453932,-500.0,0.00044999,120]
[392168409,1761227453943,-500.0,0.00044999,120]
[392168410,1761227453953,-500.0,0.00044999,120]
[392168411,1761227453962,-500.0,0.00044999,120]
[392168412,1761227453973,-500.0,0.00044999,120]
[392168413,1761227453983,-486.14416969,0.00044999,120]
[392168414,1761227453993,-500.0,0.00044999,120]
[392168415,1761227454004,-500.0,0.00044999,120]
[392168416,1761227454016,-500.0,0.00044999,120]
[392168417,1761227454027,-642.66,0.00044999,120]
[392168418,1761227454038,-223.74921864,0.00044999,120]
[392168419,1761227454049,-500.0,0.00044999,120]
[392168420,1761227454059,-500.0,0.00044999,120]
[392168421,1761227454069,-500.0,0.00044999,120]
[392168422,1761227454079,-500.0,0.00044999,120]
[392168423,1761227454089,-500.0,0.00044999,120]
[392168424,1761227454099,-500.0,0.00044999,120]
[392168425,1761227454206,-500.0,0.00044999,120]
[392168426,1761227454216,-500.0,0.00044999,120]
[392168427,1761227454225,-294.72117556,0.00044999,120]
[392168428,1761227454236,-500.0,0.00044999,120]
[392168429,1761227454246,-500.0,0.00044999,120]
[392168430,1761227454257,-500.0,0.00044999,120]
[392168431,1761227454268,-500.0,0.00044999,120]
[392168432,1761227454278,-500.0,0.00044999,120]
[392168433,1761227454287,-500.0,0.00044999,120]
[392168434,1761227454303,-500.0,0.00044999,120]
[392168435,1761227454316,-500.0,0.00044999,120]
[392168436,1761227454326,-540.36,0.00044999,120]
[392168437,1761227454336,-500.0,0.00044999,120]
[392168438,1761227454345,-500.0,0.00044999,120]
[392168439,1761227454355,-500.0,0.00044999,120]
[392168440,1761227454364,-500.0,0.00044999,120]
[392168441,1761227454374,-500.0,0.00044999,120]
[392168442,1761227454384,-637.31235669,0.00044999,120]
[392168443,1761227454394,-750.71,0.00044999,120]
[392168444,1761227454404,-750.71,0.00044999,120]
[392168445,1761227454415,-750.71,0.00044999,120]
[392168446,1761227454424,-750.71,0.00044999,120]
[392168447,1761227454434,-750.71,0.00044999,120]
[392168448,1761227454443,-500.0,0.00044999,120]
[392168449,1761227454453,-750.71,0.00044999,120]
[392168450,1761227454463,-750.71,0.00044999,120]
[392168451,1761227454472,-500.0,0.00044999,120]
[392168452,1761227454481,-750.71,0.00044999,120]
[392168453,1761227454491,-500.0,0.00044999,120]
[392168454,1761227454500,-750.71,0.00044999,120]
[392168455,1761227454510,-500.0,0.00044999,120]
[392168456,1761227454520,-750.71,0.00044999,120]
[392168457,1761227454530,-500.0,0.00044999,120]
[392168458,1761227454540,-750.71,0.00044999,120]
[392168459,1761227454549,-500.0,0.00044999,120]
[392168460,1761227454559,-750.71,0.00044999,120]
[392168461,1761227454568,-500.0,0.00044999,120]
[392168462,1761227454578,-750.71,0.00044999,120]
[392168463,1761227454588,-500.0,0.00044999,120]
[392168464,1761227454598,-750.92389057,0.00044999,120]
[392168465,1761227454607,-500.0,0.00044999,120]
[392168466,1761227454616,-500.0,0.00044999,120]
[392168467,1761227454626,-500.0,0.00044999,120]
[392168468,1761227454635,-500.0,0.00044999,120]
[392168469,1761227454645,-500.0,0.00044999,120]
[392168470,1761227454654,-186.98184871,0.00044999,120]
[392168471,1761227454668,-500.0,0.00044999,120]
[392168472,1761227454678,-500.0,0.00044999,120]
[392168473,1761227454687,-500.0,0.00044999,120]
[392168474,1761227454697,-500.0,0.00044999,120]
[392168475,1761227454707,-500.0,0.00044999,120]
[392168476,1761227454717,-500.0,0.00044999,120]
[392168477,1761227454727,-500.0,0.00044999,120]
[392168478,1761227454736,-185.30901198,0.00044999,120]
[392168479,1761227454746,-500.0,0.00044999,120]
[392168480,1761227454757,-500.0,0.00044999,120]
[392168481,1761227454768,-500.0,0.00044999,120]
[392168482,1761227454778,-500.0,0.00044999,120]
[392168483,1761227454788,-500.0,0.00044999,120]
[392168484,1761227454798,-500.0,0.00044999,120]
[392168485,1761227454807,-450.37771654,0.00044999,120]
[392168486,1761227454816,-500.0,0.00044999,120]
[392168487,1761227454826,-500.0,0.00044999,120]
[392168488,1761227454835,-500.0,0.00044999,120]
[392168489,1761227454844,-500.0,0.00044999,120]
[392168490,1761227454854,-500.0,0.00044999,120]
[392168491,1761227454864,-372.05053788,0.00044999,120]
[392168492,1761227454873,-500.0,0.00044999,120]
[392168493,1761227454883,-500.0,0.00044999,120]
[392168494,1761227454893,-500.0,0.00044999,120]
[392168495,1761227454902,-500.0,0.00044999,120]
[392168496,1761227454911,-500.0,0.00044999,120]
[392168497,1761227454921,-500.0,0.00044999,120]
[392168498,1761227454930,-500.0,0.00044999,120]
[392168499,1761227454939,-500.0,0.00044999,120]
[392168500,1761227454950,-500.0,0.00044999,120]
[392168501,1761227454959,-500.0,0.00044999,120]
[392168502,1761227454969,-500.0,0.00044999,120]
[392168503,1761227454979,-184.95506352,0.00044999,120]
[392168504,1761227454988,-500.0,0.00044999,120]
[392168505,1761227454997,-500.0,0.00044999,120]
[392168506,1761227455007,-500.0,0.00044999,120]
[392168507,1761227455018,-500.0,0.00044999,120]
[392168508,1761227455028,-500.0,0.00044999,120]
[392168509,1761227455037,-500.0,0.00044999,120]
[392168510,1761227455046,-500.0,0.00044999,120]
[392168511,1761227455054,-500.0,0.00044999,120]
[392168512,1761227455063,-500.0,0.00044999,120]
[392168513,1761227455073,-500.0,0.00044999,120]
[392168514,1761227455082,-166.6101006,0.00044999,120]
[392168515,1761227455091,-500.0,0.00044999,120]
[392168516,1761227455101,-500.0,0.00044999,120]
[392168517,1761227455110,-500.0,0.00044999,120]
[392168518,1761227455119,-500.0,0.00044999,120]
[392168519,1761227455129,-500.0,0.00044999,120]
[392168520,1761227455139,-500.0,0.00044999,120]
[392168521,1761227455148,-500.0,0.00044999,120]
[392168522,1761227455157,-500.0,0.00044999,120]
[392168523,1761227455167,-500.0,0.00044999,120]
[392168524,1761227455176,-196.77070388,0.00044999,120]
[392168525,1761227455185,-528.41,0.00044999,120]
[392168526,1761227455194,-528.41,0.00044999,120]
[392168527,1761227455204,-528.41,0.00044999,120]
[392168528,1761227455213,-528.41,0.00044999,120]
[392168529,1761227455222,-528.41,0.00044999,120]
[392168530,1761227455232,-528.41,0.00044999,120]
[392168531,1761227455241,-528.41,0.00044999,120]
[392168532,1761227455250,-528.41,0.00044999,120]
[392168533,1761227455259,-528.41,0.00044999,120]
[392168534,1761227455269,-528.41,0.00044999,120]
[392168535,1761227455279,-528.41,0.00044999,120]
[392168536,1761227455289,-528.41,0.00044999,120]
[392168537,1761227455298,-528.41,0.00044999,120]
[392168538,1761227455308,-528.57564525,0.00044999,120]
[392168539,1761227455317,-500.0,0.00044999,120]
[392168540,1761227455327,-500.0,0.00044999,120]
[392168541,1761227455336,-500.0,0.00044999,120]
[392168542,1761227455345,-500.0,0.00044999,120]
[392168543,1761227455356,-500.0,0.00044999,120]
[392168544,1761227455365,-604.32421852,0.00044999,120]
[392168545,1761227455375,-500.0,0.00044999,120]
[392168546,1761227455384,-500.0,0.00044999,120]
[392168547,1761227455393,-500.0,0.00044999,120]